Workbook

Sheet Segment 1
A1: Planungshilfe für xBus-Segmente | K1: =Version -> V2.00
A3: Projekt:
A4: Segment:
A5: Kunde:
A6: Planung:
A7: Notizen: | G7: =IF(ISBLANK($B$10),"",VLOOKUP($B$10,Liste_Gateways_Komplett,2,FALSE)) -> 290.0 | H7: =IF(ISBLANK($B$10),"",VLOOKUP($B$10,Liste_Gateways_Komplett,3,FALSE)) -> 0.5 | I7: =IF(ISBLANK($B$10),"",VLOOKUP($B$10,Liste_Gateways_Komplett,4,FALSE)) -> 85
D8: Maximal | J8: Durchschnitt
A9: Anzahl | B9: Gerät | C9: Notizen | D9: I [mA] | E9: Strom [mA] | F9: Leistung [W] | G9: Buslast [%] | J9: Strom [mA] | K9: Leistung [W]
A10: 1 | B10: xBG-B1-V | C10: xBus-Gateway | F10: =H7+SUM(F11:F33)*I7/100 -> 0.50 | K10: =H7+SUM(K11:K33)*I7/100 -> 0.50
D11: =IF(ISBLANK(B11),"",VLOOKUP(B11,Liste_Gesamt,2,FALSE)) ->  | E11: =IF(ISBLANK(B11),"",A11*D11) ->  | F11: =IF(ISBLANK(B11),"",E11*xBus_U/1000+VLOOKUP(B11,Liste_Gesamt,5,FALSE)) ->  | G11: =IF(ISBLANK(B11),"",100*E11/$G$7) ->  | J11: =IF(ISBLANK(B11),"",VLOOKUP(B11,Liste_Gesamt,4,FALSE) * A11) ->  | K11: =IF(ISBLANK(B11),"",J11*xBus_U/1000+VLOOKUP(B11,Liste_Gesamt,5,FALSE)) -> 
A34: =IF(G34>100,"xBus-Segment ist überlastet! Einige Geräte in ein neues Segment wechseln. Siehe Register 'Informationen'.","Weitere Informationen zur Planung finden Sie in Register 'Informationen'.") -> Weitere Informationen zur Planung finden Sie in Register 'Informationen'. | E34: =SUM(E11:E33) -> 0 mA | F34: =SUM(F10:F33) -> 0.5 W | G34: =SUM(G11:G33) -> 0 % | J34: =SUM(J11:J33) -> 0 mA | K34: =SUM(K10:K33) -> 0.5 W

Sheet Segment 2
A1: Planungshilfe für xBus-Segmente | K1: =Version -> V2.00
A3: Projekt:
A4: Segment:
A5: Kunde:
A6: Planung:
A7: Notizen: | G7: =IF(ISBLANK($B$10),"",VLOOKUP($B$10,Liste_Gateways_Komplett,2,FALSE)) -> 290.0 | H7: =IF(ISBLANK($B$10),"",VLOOKUP($B$10,Liste_Gateways_Komplett,3,FALSE)) -> 0.5 | I7: =IF(ISBLANK($B$10),"",VLOOKUP($B$10,Liste_Gateways_Komplett,4,FALSE)) -> 85
D8: Maximal | J8: Durchschnitt
A9: Anzahl | B9: Gerät | C9: Notizen | D9: I [mA] | E9: Strom [mA] | F9: Leistung [W] | G9: Buslast [%] | J9: Strom [mA] | K9: Leistung [W]
A10: 1 | B10: xBG-B1-V | C10: xBus-Gateway | F10: =H7+SUM(F11:F33)*I7/100 -> 0.50 | K10: =H7+SUM(K11:K33)*I7/100 -> 0.50
D11: =IF(ISBLANK(B11),"",VLOOKUP(B11,Liste_Gesamt,2,FALSE)) ->  | E11: =IF(ISBLANK(B11),"",A11*D11) ->  | F11: =IF(ISBLANK(B11),"",E11*xBus_U/1000+VLOOKUP(B11,Liste_Gesamt,5,FALSE)) ->  | G11: =IF(ISBLANK(B11),"",100*E11/$G$7) ->  | J11: =IF(ISBLANK(B11),"",VLOOKUP(B11,Liste_Gesamt,4,FALSE) * A11) ->  | K11: =IF(ISBLANK(B11),"",J11*xBus_U/1000+VLOOKUP(B11,Liste_Gesamt,5,FALSE)) -> 
A34: =IF(G34>100,"xBus-Segment ist überlastet! Einige Geräte in ein neues Segment wechseln. Siehe Register 'Informationen'.","Weitere Informationen zur Planung finden Sie in Register 'Informationen'.") -> Weitere Informationen zur Planung finden Sie in Register 'Informationen'. | E34: =SUM(E11:E33) -> 0 mA | F34: =SUM(F10:F33) -> 0.5 W | G34: =SUM(G11:G33) -> 0 % | J34: =SUM(J11:J33) -> 0 mA | K34: =SUM(K10:K33) -> 0.5 W

Sheet Segment 3
A1: Planungshilfe für xBus-Segmente | K1: =Version -> V2.00
A3: Projekt:
A4: Segment:
A5: Kunde:
A6: Planung:
A7: Notizen: | G7: =IF(ISBLANK($B$10),"",VLOOKUP($B$10,Liste_Gateways_Komplett,2,FALSE)) -> 290.0 | H7: =IF(ISBLANK($B$10),"",VLOOKUP($B$10,Liste_Gateways_Komplett,3,FALSE)) -> 0.5 | I7: =IF(ISBLANK($B$10),"",VLOOKUP($B$10,Liste_Gateways_Komplett,4,FALSE)) -> 85
D8: Maximal | J8: Durchschnitt
A9: Anzahl | B9: Gerät | C9: Notizen | D9: I [mA] | E9: Strom [mA] | F9: Leistung [W] | G9: Buslast [%] | J9: Strom [mA] | K9: Leistung [W]
A10: 1 | B10: xBG-B1-V | C10: xBus-Gateway | F10: =H7+SUM(F11:F33)*I7/100 -> 0.50 | K10: =H7+SUM(K11:K33)*I7/100 -> 0.50
D11: =IF(ISBLANK(B11),"",VLOOKUP(B11,Liste_Gesamt,2,FALSE)) ->  | E11: =IF(ISBLANK(B11),"",A11*D11) ->  | F11: =IF(ISBLANK(B11),"",E11*xBus_U/1000+VLOOKUP(B11,Liste_Gesamt,5,FALSE)) ->  | G11: =IF(ISBLANK(B11),"",100*E11/$G$7) ->  | J11: =IF(ISBLANK(B11),"",VLOOKUP(B11,Liste_Gesamt,4,FALSE) * A11) ->  | K11: =IF(ISBLANK(B11),"",J11*xBus_U/1000+VLOOKUP(B11,Liste_Gesamt,5,FALSE)) -> 
A34: =IF(G34>100,"xBus-Segment ist überlastet! Einige Geräte in ein neues Segment wechseln. Siehe Register 'Informationen'.","Weitere Informationen zur Planung finden Sie in Register 'Informationen'.") -> Weitere Informationen zur Planung finden Sie in Register 'Informationen'. | E34: =SUM(E11:E33) -> 0 mA | F34: =SUM(F10:F33) -> 0.5 W | G34: =SUM(G11:G33) -> 0 % | J34: =SUM(J11:J33) -> 0 mA | K34: =SUM(K10:K33) -> 0.5 W

Sheet Segment 4
A1: Planungshilfe für xBus-Segmente | K1: =Version -> V2.00
A3: Projekt:
A4: Segment:
A5: Kunde:
A6: Planung:
A7: Notizen: | G7: =IF(ISBLANK($B$10),"",VLOOKUP($B$10,Liste_Gateways_Komplett,2,FALSE)) -> 290.0 | H7: =IF(ISBLANK($B$10),"",VLOOKUP($B$10,Liste_Gateways_Komplett,3,FALSE)) -> 0.5 | I7: =IF(ISBLANK($B$10),"",VLOOKUP($B$10,Liste_Gateways_Komplett,4,FALSE)) -> 85
D8: Maximal | J8: Durchschnitt
A9: Anzahl | B9: Gerät | C9: Notizen | D9: I [mA] | E9: Strom [mA] | F9: Leistung [W] | G9: Buslast [%] | J9: Strom [mA] | K9: Leistung [W]
A10: 1 | B10: xBG-B1-V | C10: xBus-Gateway | F10: =H7+SUM(F11:F33)*I7/100 -> 0.50 | K10: =H7+SUM(K11:K33)*I7/100 -> 0.50
D11: =IF(ISBLANK(B11),"",VLOOKUP(B11,Liste_Gesamt,2,FALSE)) ->  | E11: =IF(ISBLANK(B11),"",A11*D11) ->  | F11: =IF(ISBLANK(B11),"",E11*xBus_U/1000+VLOOKUP(B11,Liste_Gesamt,5,FALSE)) ->  | G11: =IF(ISBLANK(B11),"",100*E11/$G$7) ->  | J11: =IF(ISBLANK(B11),"",VLOOKUP(B11,Liste_Gesamt,4,FALSE) * A11) ->  | K11: =IF(ISBLANK(B11),"",J11*xBus_U/1000+VLOOKUP(B11,Liste_Gesamt,5,FALSE)) -> 
A34: =IF(G34>100,"xBus-Segment ist überlastet! Einige Geräte in ein neues Segment wechseln. Siehe Register 'Informationen'.","Weitere Informationen zur Planung finden Sie in Register 'Informationen'.") -> Weitere Informationen zur Planung finden Sie in Register 'Informationen'. | E34: =SUM(E11:E33) -> 0 mA | F34: =SUM(F10:F33) -> 0.5 W | G34: =SUM(G11:G33) -> 0 % | J34: =SUM(J11:J33) -> 0 mA | K34: =SUM(K10:K33) -> 0.5 W

Sheet Beispiel
A1: Planungshilfe für xBus-Segmente | K1: =Version -> V2.00
A3: Projekt: | B3: Schulhaus Hinterfultigen
A4: Segment: | B4: 1. OG
A5: Kunde: | B5: Gemeinde Hinterfultigen
A6: Planung: | B6: Elektro Fult AG
A7: Notizen: | G7: =IF(ISBLANK($B$10),"",VLOOKUP($B$10,Liste_Gateways_Komplett,2,FALSE)) -> 290.0 | H7: =IF(ISBLANK($B$10),"",VLOOKUP($B$10,Liste_Gateways_Komplett,3,FALSE)) -> 0.5 | I7: =IF(ISBLANK($B$10),"",VLOOKUP($B$10,Liste_Gateways_Komplett,4,FALSE)) -> 85
D8: Maximal | J8: Durchschnitt
A9: Anzahl | B9: Gerät | C9: Notizen | D9: I [mA] | E9: Strom [mA] | F9: Leistung [W] | G9: Buslast [%] | J9: Strom [mA] | K9: Leistung [W]
A10: 1 | B10: xBG-B1-V | C10: xBus-Gateway | F10: =H7+SUM(F11:F33)*I7/100 -> 3.82 | K10: =H7+SUM(K11:K33)*I7/100 -> 1.84
A11: 10 | B11: xBS-K8TET-UP mit LED | D11: =IF(ISBLANK(B11),"",VLOOKUP(B11,Liste_Gesamt,2,FALSE)) -> 15.0 | E11: =IF(ISBLANK(B11),"",A11*D11) -> 150 | F11: =IF(ISBLANK(B11),"",E11*xBus_U/1000+VLOOKUP(B11,Liste_Gesamt,5,FALSE)) -> 2.25 | G11: =IF(ISBLANK(B11),"",100*E11/$G$7) -> 51.7 | J11: =IF(ISBLANK(B11),"",VLOOKUP(B11,Liste_Gesamt,4,FALSE) * A11) -> 70.0 | K11: =IF(ISBLANK(B11),"",J11*xBus_U/1000+VLOOKUP(B11,Liste_Gesamt,5,FALSE)) -> 1.05
A12: 20 | B12: xBS-K4TE-UP ohne LED | D12: 3.0 | E12: 60 | F12: 0.9 | G12: 20.7 | J12: 10.0 | K12: 0.15
A13: 5 | B13: xBS-PRP360L-UP | D13: 10.0 | E13: 50 | F13: 0.75 | G13: 17.2 | J13: 25.0 | K13: 0.375
A34: =IF(G34>100,"xBus-Segment ist überlastet! Einige Geräte in ein neues Segment wechseln. Siehe Register 'Informationen'.","Weitere Informationen zur Planung finden Sie in Register 'Informationen'.") -> Weitere Informationen zur Planung finden Sie in Register 'Informationen'. | E34: =SUM(E11:E33) -> 260 mA | F34: =SUM(F10:F33) -> 7.7 W | G34: =SUM(G11:G33) -> 90 % | J34: =SUM(J11:J33) -> 105 mA | K34: =SUM(K10:K33) -> 3.4 W

Sheet Informationen
A1: Informationen zu xBus | B1: =Version -> V2.00
A3: Grundlagen:
A4: Die Spannungsversorgung und die Datenübertragung erfolgen über zwei Busdrähte. Als Koppler für die verschiedenen physikalischen Eingangssignale dienen die kompakten Buskoppler. Diese sind erhältlich für bis acht digitale oder zwei analoge Eingangssignale. Es existiert eine komplette Palette von Geräten mit integrierten Kopplern zum Einbinden aller im Gebäude benötigten Informationen wie Lampen-, Rollladentaster, Raumtemperaturmelder, Bewegungsmelder, Fernbedienungsempfänger, etc. Die 2-Drahtleitung wird mit Kleinspannung (15VDC) von einer Spannungsversorgung zentral betrieben. Dank der Kleinspannung ist die Installation gefahrlos und berührungssicher und bietet somit einen aktiven Personenschutz. Die Feldgeräte werden polaritätsabhängig an die 2-Drahtleitung angeschlossen. Alle Feldgeräte sind gegen Verpolung geschützt. Eine Zentrale kann über xBus-Gateways xBG-Bx-V bis zu 10 voneinander elektrisch isolierte xBus-Segmente bereitstellen. Desweiteren können über Repeater xBus-Segment entkoppelt werden. Die maximale Anzahl Feldgeräte pro xBus-Segment ist abhängig von der Art und Anzahl der Feldgeräte. Für die Adressvergabe der Feldgeräte spielt es keine Rolle, an welchem xBus-Segment die Feldgeräte angeschlossen sind.
A5: Planung: | B5: Beispiel Struktur:
A6: Mit dieser Planungshilfe können die einzelnen xBus-Segmente zuverlässig mit Feldgeräten belegt werden, so dass die maximale Buslast pro Segment nicht überschritten wird. Es empfiehlt sich für spätere Nachrüstungen eine Reserve von ca. 10-20% einzuplanen. Liegt die berechnete Buslast in einem Segment über 100%, so sind Feldgeräte in ein neues Segment zu wechseln. Dies kann durch Anschluss eines weiteren xBus-Gateways xBG-Bx-V an die Bluebox oder durch Verwendung eines Repeaters xBR-H1N-V erfolgen (siehe Beispiel Struktur). Die Installation ist mit U72 1x4x0.8mm auszuführen. Bei Verwendung von einem Leiterpaar (2x0.8mm) liegt die maximale Leitungslänge pro xBus-Segment bei 200m.

Sheet Geräteliste
B1: Maximal | D1: Durchschnitt
A2: xBus-Geräte | B2: I [mA] | C2: Pext [W] | D2: I [mA] | E2: Pext [W] | G2: xBus-Gateways | H2: Imax [mA] | I2: Pidle [W] | J2: n [%] | L2: Version: | N2: xBus-Spannung:
G3: xBG-B1-V | H3: 290.0 | I3: 0.5 | J3: 85.0 | L3: V2.00 | N3: 15.0
A4: ** TASTEN EDIZIO ** | G4: xBG-B2-V | H4: 590.0 | I4: 0.5 | J4: 85.0
A5: xBS-K4TE-UP ohne LED | B5: 3.0 | C5: 0.0 | D5: 0.5 | E5: 0.0
A6: xBS-K4TE-UP mit LED | B6: 7.0 | C6: 0.0 | D6: 3.0 | E6: 0.0
A7: xBS-K8TE-UP ohne LED | B7: 4.0 | C7: 0.0 | D7: 2.0 | E7: 0.0
A8: xBS-K8TE-UP mit LED | B8: 15.0 | C8: 0.0 | D8: 7.0 | E8: 0.0
A9: xBS-K8TET-UP ohne LED | B9: 4.0 | C9: 0.0 | D9: 2.0 | E9: 0.0
A10: xBS-K8TET-UP mit LED | B10: 15.0 | C10: 0.0 | D10: 7.0 | E10: 0.0
A12: ** SENSOREN DIGITAL **
A13: xBS-K4DU-D | B13: 7.0 | C13: 0.0 | D13: 1.0 | E13: 0.0
A14: xBS-K2DN-D | B14: 7.0 | C14: 0.0 | D14: 3.0 | E14: 0.0
A15: xBS-K4DIO-D | B15: 8.0 | C15: 0.0 | D15: 3.0 | E15: 0.0
A17: ** SENSOREN ANALOG **
A18: xBS-KMRT-D | B18: 10.0 | C18: 0.0 | D18: 2.0 | E18: 0.0
A19: xBS-MRTD-UP | B19: 10.0 | C19: 0.0 | D19: 4.0 | E19: 0.0
A20: xBS-MRHD-UP | B20: 10.0 | C20: 0.0 | D20: 4.0 | E20: 0.0
A21: xBS-MLUX-UP | B21: 5.0 | C21: 0.0 | D21: 1.0 | E21: 0.0
A22: xBS-K8UIF-V | B22: 2.0 | D22: 0.5
A24: ** BEWEGUNGSMELDER **
A25: xBS-KPIR-UP | B25: 5.0 | C25: 0.0 | D25: 2.5 | E25: 0.0
A26: xBS-BMA-AP | B26: 10.0 | C26: 0.0 | D26: 6.0 | E26: 0.0
A27: xBS-BMA2-AP | B27: 10.0 | C27: 0.0 | D27: 6.0 | E27: 0.0
A28: xBS-PCO-UP | B28: 20.0 | C28: 0.0 | D28: 6.0 | E28: 0.0 | F28: Aufstarten
A29: xBS-PEC-UP | B29: 20.0 | C29: 0.0 | D29: 9.0 | E29: 0.0 | F29: Aufstarten
A30: xBS-PRS360-UP | B30: 20.0 | C30: 0.0 | D30: 6.0 | E30: 0.0 | F30: Aufstarten
A31: xBS-PRP360-UP | B31: 20.0 | C31: 0.0 | D31: 6.0 | E31: 0.0 | F31: Aufstarten
A32: xBS-PRP360L-UP | B32: 10.0 | C32: 0.0 | D32: 5.0 | E32: 0.0
A34: ** ENOCEAN **
A35: xBG-EO1-D | B35: 19.0 | C35: 0.0 | D35: 16.0 | E35: 0.0
A36: xBG-EO2-D | B36: 19.0 | C36: 0.0 | D36: 16.0 | E36: 0.0
A38: ** AKTOREN **
A39: xBA-S2-D | B39: 10.0 | C39: 0.0 | D39: 4.0 | E39: 0.0
A40: xBA-R12-D | B40: 10.0 | C40: 0.0 | D40: 3.0 | E40: 0.0
A41: xBA-S4-V | B41: 15.0 | C41: 0.0 | D41: 4.0 | E41: 0.0
A42: xBA-R22-V | B42: 13.0 | C42: 0.0 | D42: 3.0 | E42: 0.0
A43: xBA-R13-V | B43: 13.0 | C43: 0.0 | D43: 3.0 | E43: 0.0
A44: xBA-R22DC-V | B44: 13.0 | C44: 0.0 | D44: 3.0 | E44: 0.0
A45: xBA-R62-V | B45: 2.0 | D45: 0.5
A46: xBA-R43-V | B46: 2.0 | D46: 0.5
A47: xBA-D4-V | B47: 15.0 | D47: 10.0
A48: xBA-D2EVG-V | B48: 13.0 | C48: 0.0 | D48: 10.0 | E48: 0.0
A49: xBG-DA-V | B49: 2.0 | D49: 0.5
A51: ** REPEATER **
A52: xBR-H1N-G | B52: 10.0 | D52: 10.0
